bitfinex-derivatives/quotes_SOLF0:USTF0_20251117
["timestamp","ask_amount","ask_price","bid_price","bid_amount"]
[1763339002718,21.57805431,136.22,136.1,3.25]
[1763339002719,6.6139,136.18,136.1,3.25]
[1763339003418,2.13,136.23,136.11,3.25]
[1763339003816,5.16774728,136.26,136.06,13.56347795]
[1763339003817,2.13,136.26,136.17,3.25]
[1763339004022,6.6122,136.22,136.17,3.25]
[1763339004731,24.66473403,136.3,136.18,3.25]
[1763339004924,0.0559068,136.25,136.23,3.30386342]
[1763339005117,0.05356871,136.25,136.23,3.30386342]
[1763339007826,6.66436871,136.25,136.23,3.30386342]
[1763339008335,0.05356871,136.25,136.23,3.30386342]
[1763339008737,6.66446871,136.25,136.23,3.30386342]
[1763339009036,0.05356871,136.25,136.23,3.30386342]
[1763339009527,0.05356871,136.25,136.23,0.05386342]
[1763339010433,2.17,136.24,136.23,0.05386342]
[1763339011633,0.05356871,136.25,136.23,0.05386342]
[1763339011839,0.05356871,136.25,136.23,3.30386342]
[1763339012535,6.66396871,136.25,136.23,0.05386342]
[1763339012939,2.17,136.24,136.23,0.05386342]
[1763339014232,0.05356871,136.25,136.23,3.30386342]
[1763339016728,2.22356871,136.25,136.23,0.05386342]
[1763339018541,0.05356871,136.25,136.23,0.05386342]
[1763339019648,2.22356871,136.25,136.23,0.05386342]
[1763339019851,0.05356871,136.25,136.23,3.30386342]
[1763339021244,0.00356871,136.25,136.23,3.30386342]
[1763339027459,2.22,136.31,136.23,3.30386342]
[1763339027664,2.22,136.34,136.23,3.30386342]
[1763339027863,2.22,136.34,136.23,3.25]
[1763339028459,0.04682641,136.3,136.27,0.05621359]
[1763339028859,0.04682641,136.3,136.27,3.30621359]
[1763339029273,2.26682641,136.3,136.27,0.05621359]
[1763339031168,0.04682641,136.3,136.27,3.30621359]
[1763339032760,2.22,136.36,136.27,3.30621359]
[1763339033066,2.22,136.4,136.27,3.25]
[1763339033768,0.05350829,136.35,136.32,3.43334337]
[1763339039571,2.22,136.43,136.32,3.43334337]
[1763339039761,2.22,136.43,136.32,3.38]
[1763339040066,2.22,136.43,136.33,3.38]
[1763339040471,0.04694566,136.39,136.38,3.38]
[1763339040668,0.04885321,136.4,136.38,3.38]
[1763339040872,2.22,136.46,136.38,3.38]
[1763339041066,0.04707619,136.43,136.38,3.43327345]
[1763339042186,2.22,136.49,136.38,3.43327345]
[1763339042363,7.37493655,136.52,136.39,3.38]
[1763339042564,2.22,136.55,136.41,3.38]
[1763339042971,2.22,136.55,136.43,3.38]
[1763339043270,0.05038821,136.5,136.48,3.4292874]
[1763339043462,0.05474998,136.5,136.48,3.43155979]
[1763339044063,2.27474998,136.5,136.48,0.05155979]
[1763339044466,0.05474998,136.5,136.48,0.05155979]
[1763339044863,0.05474998,136.5,136.48,3.43155979]
[1763339045067,0.05474998,136.5,136.48,0.05155979]
[1763339045267,2.27474998,136.5,136.48,0.05155979]
[1763339045477,0.05474998,136.5,136.48,0.05155979]
[1763339045874,2.27474998,136.5,136.48,0.05155979]
[1763339046071,0.05474998,136.5,136.48,0.05155979]
[1763339046273,0.05474998,136.5,136.48,3.43155979]
[1763339046779,89.33491208,136.61,136.48,3.43155979]
[1763339046780,2.22,136.57,136.48,3.43155979]
[1763339046978,23.83313578,136.61,136.48,3.38]
[1763339047179,2.22,136.65,136.49,3.38]
[1763339047481,2.22,136.65,136.5,3.38]
[1763339047866,2.26621446,136.59,136.56,0.05530154]
[1763339048071,2.26815927,136.59,136.56,0.05588119]
[1763339048269,2.26815927,136.59,136.47,3.38]
[1763339048476,2.22,136.59,136.47,3.38]
[1763339049281,0.0508488,136.54,136.52,3.43300918]
[1763339049481,2.22,136.63,136.52,3.43300918]
[1763339049782,2.22,136.63,136.53,3.38]
[1763339050683,0.05235832,136.59,136.57,0.05490228]
[1763339052379,0.05235832,136.59,136.57,3.43490228]
[1763339052684,2.22,136.69,136.57,3.43490228]
[1763339052884,2.22,136.69,136.57,3.38]
[1763339053378,2.22,136.68,136.57,3.38]
[1763339053579,2.22,136.68,136.61,0.05135582]
[1763339053776,2.22,136.63,136.61,0.05135582]
[1763339054175,2.22,136.63,136.53,3.38]
[1763339054176,2.22,136.61,136.53,3.38]
[1763339055084,2.22,136.61,136.56,0.04853674]
[1763339055284,0.04960126,136.58,136.56,0.04853674]
[1763339056281,0.04960126,136.58,136.56,3.26853674]
[1763339056483,2.21,136.64,136.56,3.26853674]
[1763339056780,21.65992423,136.69,136.56,3.26853674]
[1763339056781,2.21,136.67,136.56,3.26853674]
[1763339056989,2.21,136.67,136.56,3.22]
[1763339057279,2.21,136.71,136.58,3.22]
[1763339057482,0.05445773,136.66,136.63,3.2693774]
[1763339057890,2.21,136.71,136.63,3.2693774]
[1763339058181,2.21,136.74,136.63,3.2693774]
[1763339058380,2.21,136.74,136.63,3.22]
[1763339058890,0.05051875,136.7,136.68,3.22]
[1763339059781,2.21,136.77,136.68,3.22]
[1763339060988,0.05045535,136.74,136.72,3.22]
[1763339061183,2.21,136.83,136.72,3.27505071]
[1763339061386,2.21,136.83,136.72,3.22]
[1763339062182,0.02899954,136.79,136.76,3.21513359]
[1763339062382,1.27237162,136.87,136.76,3.21513359]
[1763339062383,2.21,136.87,136.76,3.21513359]
[1763339062585,2.21,136.87,136.76,3.16]
[1763339063394,2.21,136.87,136.8,0.05634762]
[1763339064293,10.28495485,136.87,136.8,0.05634762]
[1763339064494,2.21,136.86,136.8,0.05634762]
[1763339068300,2.21,136.9,136.8,3.21634762]
[1763339068494,2.21,136.9,136.84,0.04694572]
[1763339072702,2.21,136.89,136.84,0.04694572]
[1763339074701,2.17,136.87,136.74,3.16]
[1763339075695,2.21694572,136.82,136.79,0.04765456]
[1763339075893,2.17,136.82,136.79,0.04747502]
[1763339076096,2.21694572,136.82,136.79,0.04747502]
[1763339079094,0.04694572,136.82,136.79,0.04747502]
[1763339079303,0.04694572,136.82,136.79,3.20747502]
[1763339079891,2.17,136.9,136.79,3.20747502]
[1763339080095,2.17,136.9,136.79,3.16]
[1763339080295,2.17,136.9,136.81,3.16]
[1763339080904,2.17,136.9,136.69,22.02]
[1763339080905,2.17,136.9,136.76,3.16]
[1763339081600,2.17,136.9,136.78,3.16]
[1763339081897,2.17,136.9,136.83,0.04817006]
[1763339082099,2.17,136.9,136.83,3.20817006]
[1763339082295,0.04739047,136.88,136.83,3.20817006]
[1763339083604,2.12,136.97,136.84,3.16]
[1763339083797,2.12,136.97,136.87,3.16]
[1763339084700,2.12,136.97,136.91,0.04795533]
[1763339087596,2.12,136.93,136.83,3.16]
[1763339088604,0.04795533,136.89,136.87,3.20726887]
[1763339088797,2.07,136.96,136.87,3.20726887]
[1763339088996,2.07,136.96,136.87,3.16]
[1763339089809,2.07,136.96,136.9,0.05168865]
[1763339091407,2.07,137.01,136.91,3.32]
[1763339091605,2.07,137.01,136.95,0.04619372]
[1763339091909,7.30009414,137.01,136.95,0.04619372]
[1763339092101,2.07,137.0,136.95,0.04619372]
[1763339093110,2.02,136.97,136.87,3.32]
[1763339094213,0.04619372,136.93,136.91,3.37354918]
[1763339094410,0.04619372,136.93,136.91,3.37090635]
[1763339095110,2.02,137.01,136.93,3.32]
[1763339095800,7.14455073,137.04,136.93,3.32]
[1763339096000,2.02,137.03,136.97,0.05349615]
[1763339097811,2.02,137.0,136.97,0.05349615]
[1763339098012,2.07349615,137.0,136.88,3.32]
[1763339098208,2.02,137.0,136.88,3.32]
[1763339099013,0.05227861,136.95,136.93,0.0531411]
[1763339099215,2.07349615,136.95,136.93,0.0531411]
[1763339100016,2.02,136.94,136.84,3.32]
[1763339100720,2.02,136.92,136.8,65.32]
[1763339101027,5.23009414,136.93,136.85,0.05479143]
[1763339101028,0.05337228,136.87,136.85,0.05479143]
[1763339101222,0.05186361,136.87,136.85,3.37479143]
[1763339101723,0.05186361,136.87,136.85,0.05479143]
[1763339102106,0.05186361,136.87,136.85,3.37479143]
[1763339102308,2.07186361,136.87,136.85,0.05479143]
[1763339102514,0.05186361,136.87,136.85,0.05479143]
[1763339103110,0.05186361,136.87,136.85,3.37479143]
[1763339103315,5.12455073,136.93,136.86,3.32]
[1763339103527,7.14455073,136.94,136.86,3.32]
[1763339103818,5.12455073,136.94,136.86,3.32]
[1763339104018,13.8192367,136.97,136.86,3.32]
[1763339104227,5.12455073,136.96,136.9,0.05293323]
[1763339104412,0.04802744,136.93,136.91,3.32]
[1763339104617,5.12455073,137.0,136.91,3.32]
[1763339104817,5.12455073,137.02,136.93,3.32]
[1763339105018,7.14455073,137.02,136.93,3.32]
[1763339105212,2.02,137.0,136.93,3.32]
[1763339105727,2.02,136.99,136.95,0.04686794]
[1763339105916,2.02,136.99,136.96,0.05390923]
[1763339106112,6.67468597,137.01,136.96,0.05390923]
[1763339106113,13.8192367,137.02,136.96,0.05390923]
[1763339106312,2.02,137.0,136.98,0.05560114]
[1763339106726,2.02,137.0,136.93,3.32]
[1763339107412,8.69468597,137.03,136.93,3.32]
[1763339107615,2.02,137.02,136.93,3.32]
[1763339107811,2.02,137.02,136.96,0.05629436]
[1763339107812,0.05446527,136.99,136.96,0.05629436]
[1763339108218,0.05446527,136.99,136.96,3.37629436]
[1763339109223,0.05446527,136.99,136.96,0.05629436]
[1763339109420,2.07446527,136.99,136.96,0.05629436]
[1763339110632,2.02,136.98,136.88,3.32]
[1763339110934,2.02,136.94,136.83,3.32]
[1763339111119,2.02,136.92,136.83,3.32]
[1763339111530,2.02,136.88,136.86,0.05595058]
[1763339111730,2.07571148,136.88,136.86,0.04759611]
[1763339115228,2.02,136.87,136.74,3.32]
[1763339116230,2.07627129,136.82,136.79,0.05468412]
[1763339116439,2.07627129,136.82,136.79,0.05188378]
[1763339116440,2.07891977,136.82,136.79,0.05188378]
[1763339116928,0.04891977,136.82,136.79,0.05188378]
[1763339117130,0.04891977,136.82,136.79,3.45188378]
[1763339117334,0.04891977,136.82,136.79,0.05188378]
[1763339118028,0.04891977,136.82,136.79,3.45188378]
[1763339118820,0.04891977,136.82,136.79,0.05188378]
[1763339119033,2.07891977,136.82,136.79,0.05188378]
[1763339119331,0.04891977,136.82,136.79,0.05188378]
[1763339119640,2.03,136.81,136.79,0.05188378]
[1763339120634,2.03,136.81,136.72,3.4]
[1763339121629,2.03,136.77,136.75,0.05358671]
[1763339121933,2.08247498,136.77,136.75,0.04641121]
[1763339123120,0.05247498,136.77,136.75,3.18641121]
[1763339123431,0.05247498,136.77,136.75,0.04641121]
[1763339123624,0.05247498,136.77,136.75,3.18641121]
[1763339124128,0.05247498,136.77,136.75,0.04641121]
[1763339125321,2.08247498,136.77,136.75,0.04641121]
[1763339126434,24.05,136.84,136.75,3.18641121]
[1763339126622,2.03,136.84,136.75,3.14]
[1763339127018,2.08,136.88,136.75,3.14]
[1763339127218,2.08,136.92,136.77,3.14]
[1763339127635,0.05434008,136.86,136.83,0.04999003]
[1763339127823,0.05248412,136.86,136.83,0.05133274]
[1763339128020,0.05248412,136.86,136.83,3.19133274]
[1763339129722,0.05248412,136.86,136.83,0.05133274]
[1763339130125,2.13248412,136.86,136.83,0.05133274]
[1763339131324,2.13248412,136.86,136.76,3.14]
[1763339131520,2.08,136.86,136.76,3.14]
[1763339132336,0.05377696,136.82,136.8,0.05425142]
[1763339133424,0.05377696,136.82,136.8,3.19425142]
[1763339134835,0.05377696,136.82,136.8,0.05425142]
[1763339135330,0.05377696,136.82,136.8,3.19425142]
[1763339135728,2.13377696,136.82,136.8,0.05425142]
[1763339136732,2.08,136.91,136.81,3.14]
[1763339137836,0.04809751,136.87,136.85,0.04979196]
[1763339138637,2.17809751,136.87,136.85,0.04979196]
[1763339139634,2.17809751,136.87,136.77,3.14]
[1763339139935,2.13,136.87,136.71,8.01017406]
[1763339140125,2.13,136.87,136.74,3.14]
[1763339140329,2.13,136.86,136.74,3.14]
[1763339140524,0.05434822,136.81,136.79,0.05485268]
[1763339140729,2.13,136.8,136.79,0.05485268]
[1763339142039,2.1799818,136.81,136.79,0.05485268]
[1763339143435,0.0499818,136.81,136.79,0.05485268]
[1763339143635,0.0499818,136.81,136.79,3.19485268]
[1763339146133,0.0499818,136.81,136.79,0.05485268]
[1763339146334,2.1799818,136.81,136.79,0.05485268]
[1763339146541,0.0499818,136.81,136.79,0.05485268]
[1763339148537,0.0499818,136.81,136.79,3.19485268]
[1763339150947,0.0499818,136.81,136.79,0.05485268]
[1763339151437,0.0499818,136.81,136.8,3.33]
[1763339151642,6.69949478,136.92,136.8,3.33]
[1763339151844,25.74374242,136.97,136.84,3.33]
[1763339152045,3.37,137.01,136.87,8.01017406]
[1763339152247,3.37,137.01,136.88,3.33]
[1763339152446,77.52,137.04,136.88,3.33]
[1763339152653,0.04687078,136.97,136.95,0.0560078]
[1763339152850,3.37,137.05,136.96,3.33]
[1763339153761,0.04729888,137.02,136.99,0.05347184]
[1763339153960,3.41729888,137.02,136.99,0.05347184]
[1763339154159,0.04729888,137.02,136.99,0.05347184]
[1763339154454,0.04729888,137.02,136.99,3.38347184]
[1763339154664,81.01,137.1,136.99,3.38347184]
[1763339154858,81.01,137.1,136.99,3.33]
[1763339155057,3.37,137.09,136.99,3.33]
[1763339155764,0.05178256,137.05,137.03,3.38145485]
[1763339155956,0.05178256,137.05,137.03,0.05145485]
[1763339156359,0.05178256,137.05,137.03,3.38145485]
[1763339158063,3.37,137.13,137.04,3.33]
[1763339158764,3.37,137.13,136.96,3.33]
[1763339159161,3.37,137.13,137.03,0.04747454]
[1763339159364,3.37,137.13,137.07,0.05433851]
[1763339159563,3.37,137.13,137.09,0.04845656]
[1763339159754,3.37,137.13,137.1,0.053368]
[1763339159959,3.37,137.13,137.1,0.05483293]
[1763339160354,3.37,137.12,137.01,3.33]
[1763339160960,1.26960963,137.16,137.01,3.33]
[1763339161158,22.72666263,137.3,136.86,13.56347795]
[1763339161159,12.29598584,137.25,137.09,3.33]
[1763339161368,1.26926233,137.23,137.09,3.33]
[1763339161670,0.05338944,137.18,137.17,3.33]
[1763339161878,3.37,137.25,137.16,3.33]
[1763339162173,0.05233949,137.22,137.19,0.05115103]
[1763339162667,3.42233949,137.22,137.19,0.05115103]
[1763339162858,3.37,137.21,137.12,3.33]
[1763339163263,3.37,137.25,137.12,3.33]
[1763339163469,3.37,137.25,137.13,8.01017406]
[1763339163669,1.2686608,137.29,137.14,3.33]
[1763339163863,1.2686608,137.29,137.2,3.38535689]
[1763339163864,0.04676191,137.23,137.2,3.38535689]
[1763339164171,0.04676191,137.23,137.2,0.05344095]
[1763339164172,0.05411761,137.23,137.2,0.05344095]
[1763339164670,0.05411761,137.23,137.2,3.38344095]
[1763339165061,3.37,137.31,137.2,3.38344095]
[1763339165261,3.37,137.38,137.22,3.33]
[1763339166061,3.37,137.36,137.22,3.33]
[1763339166260,3.37,137.3,137.17,3.33]
[1763339166463,3.37,137.28,137.17,3.33]
[1763339167373,3.42404631,137.24,137.21,0.04904506]
[1763339167975,0.05404631,137.24,137.21,0.04904506]
[1763339168279,3.42404631,137.24,137.21,0.04904506]
[1763339169579,3.42404631,137.24,137.13,3.33]
[1763339169782,3.37,137.24,137.13,3.33]
[1763339170167,22.59,137.28,137.13,3.33]
[1763339170368,3.37,137.32,137.15,3.33]
[1763339170568,4.63794433,137.35,137.23,3.33]
[1763339170876,3.37,137.35,137.23,3.33]
[1763339171679,0.04815067,137.3,137.28,0.05023117]
[1763339171863,0.05084576,137.3,137.28,0.05023117]
[1763339172373,0.05084576,137.3,137.28,3.38023117]
[1763339172674,3.37,137.35,137.28,3.38023117]
[1763339173172,1.26762103,137.39,137.28,3.38023117]
[1763339173173,3.37,137.39,137.28,3.38023117]
[1763339173378,3.37,137.39,137.28,3.33]
[1763339173575,0.04890477,137.35,137.32,0.04757748]
[1763339173772,0.04890477,137.35,137.32,3.37757748]
[1763339174369,3.37,137.43,137.32,4.83757748]
[1763339174578,3.37,137.47,137.33,3.33]
[1763339175473,0.02003638,137.41,137.39,3.37841249]
[1763339176770,29.97017406,137.61,137.39,3.37841249]
[1763339176771,3.27,137.51,137.39,1.50841249]
[1763339176971,77.68,137.55,137.35,3.13]
[1763339176972,3.27,137.49,137.35,3.13]
[1763339177279,3.27,137.49,137.31,3.13]
[1763339177685,3.27,137.49,137.39,0.05026624]
[1763339177868,3.27,137.49,137.43,0.05280582]
[1763339180871,3.27,137.48,137.35,3.13]
[1763339181078,3.27,137.47,137.35,3.13]
[1763339181281,3.27,137.47,137.31,3.13]
[1763339181778,3.27,137.47,137.23,22.5938225]
[1763339182076,3.4,137.39,137.28,3.16]
[1763339182281,0.05280582,137.36,137.34,0.05026059]
[1763339182468,0.05280582,137.36,137.34,0.05168297]
[1763339182880,0.05280582,137.36,137.27,3.16]
[1763339182881,3.45280582,137.36,137.27,3.16]
[1763339183079,36.1938225,137.43,137.27,3.16]
[1763339183080,3.4,137.42,137.27,3.16]
[1763339183985,0.05362241,137.36,137.34,3.16]
[1763339184282,20.38,137.51,137.34,3.21048839]
[1763339184479,3.4,137.55,137.36,3.16]
[1763339184682,3.4,137.55,137.37,22.5938225]
[1763339184874,3.4,137.55,137.43,3.16]
[1763339185075,0.05176595,137.5,137.48,3.16]
[1763339185385,1.2660991,137.58,137.48,3.16]
[1763339185386,3.4,137.59,137.48,3.16]
[1763339185578,3.4,137.59,137.49,3.16]
[1763339186286,3.4,137.53,137.5,0.05162757]
[1763339186486,3.4,137.53,137.39,3.16]
[1763339186778,3.4,137.53,137.27,3.16]
[1763339186984,3.4,137.53,137.29,3.16]
[1763339187375,3.4,137.53,137.28,77.46]
[1763339187376,3.4,137.53,137.32,3.16]
[1763339187580,0.04704625,137.44,137.41,3.21502917]
[1763339187879,0.04896903,137.44,137.41,0.04817456]
[1763339188577,0.04896903,137.44,137.41,3.20817456]
[1763339188980,3.4,137.52,137.41,3.20817456]
[1763339189179,22.5938225,137.57,137.41,3.16]
[1763339189180,3.4,137.56,137.41,3.16]
[1763339189483,1.13256988,137.54,137.46,6.5521]
[1763339189682,3.4,137.65,137.48,3.16]
[1763339189986,4.66550056,137.65,137.48,3.16]
[1763339190187,3.4,137.64,137.48,3.16]
[1763339190682,37.78,137.71,137.55,0.05084021]
[1763339190683,3.4,137.63,137.55,0.05084021]
[1763339190983,3.4,137.63,137.58,0.05329741]
[1763339191187,3.4,137.6,137.41,3.16]
[1763339191684,3.4,137.55,137.41,3.16]
[1763339192082,0.05363891,137.49,137.47,0.04709336]
[1763339192388,3.4,137.53,137.35,3.16]
[1763339193274,0.05226753,137.45,137.43,0.05300569]
[1763339193480,0.0501686,137.45,137.43,3.20678772]
[1763339194997,4.66563864,137.62,137.45,3.16]
[1763339195174,3.4,137.62,137.45,3.16]
[1763339195678,3.4,137.62,137.49,3.16]
[1763339195990,1.26517851,137.67,137.49,3.16]
[1763339195991,3.45146327,137.57,137.54,0.0537061]
[1763339196175,0.04583417,137.57,137.54,0.04667541]
[1763339196380,3.44583417,137.57,137.54,0.04667541]
[1763339196783,3.44583417,137.57,137.42,3.16]
[1763339197084,3.4,137.57,137.42,3.16]
[1763339197487,3.4,137.62,137.45,3.16]
[1763339197684,3.4,137.66,137.49,3.16]
[1763339198088,3.4,137.66,137.51,3.16]
[1763339198289,3.4,137.62,137.46,3.16]
[1763339198589,3.4,137.61,137.42,3.16]
[1763339198985,0.04761538,137.53,137.5,0.05187739]
[1763339199186,3.44737441,137.53,137.5,0.05553887]
[1763339199487,3.44737441,137.53,137.41,3.16]
[1763339199488,3.4,137.52,137.41,3.16]
[1763339200382,0.04749078,137.48,137.45,0.05380757]
[1763339200978,0.04749078,137.48,137.45,3.21380757]
[1763339201187,3.4,137.57,137.45,3.21380757]
[1763339201389,3.4,137.57,137.45,3.16]
[1763339202188,0.048562,137.52,137.5,0.05004974]
[1763339202686,0.048562,137.52,137.5,3.21004974]
[1763339203088,0.048562,137.52,137.5,0.05004974]
[1763339203287,4.908562,137.52,137.5,4.974e-05]
[1763339203495,3.4,137.51,137.4,3.16]
[1763339204188,3.4,137.56,137.4,3.16]
[1763339204386,8.92598584,137.66,137.48,3.16]
[1763339204593,3.4,137.66,137.5,3.16]
[1763339204992,3.4,137.66,137.53,3.16]
[1763339205390,0.05367589,137.61,137.58,0.05197445]
[1763339205700,0.05464408,137.61,137.58,3.21150414]
[1763339206296,0.05464408,137.61,137.58,0.05150414]
[1763339206991,0.05464408,137.61,137.58,3.21150414]
[1763339207197,0.05464408,137.61,137.58,0.05150414]
[1763339207394,0.05464408,137.61,137.58,3.21150414]
[1763339208506,3.4,137.7,137.58,3.21150414]
[1763339208693,3.4,137.7,137.58,3.16]
[1763339208894,1.26471871,137.71,137.58,3.16]
[1763339209094,3.4,137.73,137.58,3.16]
[1763339209395,3.4,137.79,137.62,3.16]
[1763339209599,3.4,137.77,137.69,0.05593645]
[1763339209809,3.4,137.77,137.72,0.04924852]
[1763339209998,3.4,137.77,137.62,3.16]
[1763339210394,3.4,137.77,137.58,3.16]
[1763339210593,1.26412147,137.78,137.58,3.16]
[1763339210594,3.4,137.74,137.58,3.16]
[1763339211091,3.4,137.74,137.53,13.33753618]
[1763339211092,3.4,137.66,137.65,0.04670325]
[1763339211291,3.4,137.66,137.64,0.04807426]
[1763339211495,0.04587295,137.66,137.64,0.04746508]
[1763339212095,3.21587295,137.66,137.57,3.24]
[1763339212297,3.17,137.66,137.57,3.24]
[1763339212697,19.43,137.7,137.57,3.24]
[1763339213005,3.17,137.69,137.57,3.24]
[1763339213205,3.22104608,137.64,137.62,0.05249384]
[1763339213707,3.22104608,137.64,137.54,3.24]
[1763339214003,3.17,137.64,137.54,3.24]
[1763339214200,50.56,137.7,137.54,3.24]
[1763339214201,3.17,137.69,137.54,3.24]
[1763339214805,0.04786173,137.63,137.6,0.0542703]
[1763339215115,0.04845706,137.63,137.6,0.04931474]
[1763339215408,0.04845706,137.63,137.6,3.28931474]
[1763339216606,3.17,137.76,137.61,3.24]
[1763339217513,0.04634132,137.7,137.67,0.05386112]
[1763339217810,0.0458543,137.7,137.67,3.29005755]
[1763339218006,0.0458543,137.7,137.67,0.05005755]
[1763339218411,3.2158543,137.7,137.67,0.05005755]
[1763339218802,3.2158543,137.7,137.58,3.24]
[1763339219113,3.17,137.7,137.58,3.24]
[1763339220014,3.17,137.7,137.53,62.0]
[1763339220015,0.05085574,137.65,137.64,3.24]
[1763339220210,0.04912924,137.66,137.64,3.24]
[1763339220405,0.05219236,137.66,137.64,0.04808319]
[1763339220715,0.05219236,137.66,137.64,3.28808319]
[1763339221012,3.17,137.75,137.64,3.28808319]
[1763339221313,3.17,137.75,137.64,3.24]
[1763339221619,2.03003734,137.83,137.65,3.24]
[1763339221914,2.03003734,137.83,137.69,3.24]
[1763339222108,2.03003734,137.83,137.58,93.39341473]
[1763339222109,2.03003734,137.83,137.73,3.24]
[1763339222414,2.03003734,137.83,137.72,13.33753618]
[1763339222415,2.03003734,137.83,137.76,3.24]
[1763339222713,3.17,137.82,137.71,3.24]
[1763339223112,2.03003734,137.83,137.71,3.24]
[1763339223310,0.04086887,137.78,137.77,3.24]
[1763339223511,0.04086887,137.79,137.76,0.04977676]
[1763339223808,0.04086887,137.79,137.76,3.28977676]
[1763339224613,2.03003734,137.83,137.76,3.28977676]
[1763339225207,4.43256213,137.95,137.77,1.64]
[1763339225608,3.17,137.94,137.85,0.05024888]
[1763339225806,3.17,137.94,137.88,0.05581518]
[1763339226017,3.17,137.99,137.88,0.05581518]
[1763339226316,3.17,137.99,137.92,0.05138159]
[1763339228316,4.4321729,138.01,137.92,1.69138159]
[1763339228516,4.4321729,138.01,137.86,62.0]
[1763339228517,3.17,138.0,137.95,0.0552388]
[1763339228820,3.17,138.0,137.79,1.64]
[1763339229513,80.13,138.0,137.79,1.64]
[1763339229716,0.04911757,137.91,137.88,0.05020604]
[1763339229920,3.17,137.95,137.83,1.64]
[1763339230113,3.17,137.95,137.84,1.64]
[1763339230418,0.04758355,137.91,137.88,1.68977035]
[1763339230716,0.04752972,137.91,137.88,1.68665195]
[1763339231014,0.04752972,137.91,137.88,0.04665195]
[1763339231220,0.04752972,137.91,137.88,1.68665195]
[1763339231715,3.21752972,137.91,137.88,0.04665195]
[1763339231922,3.21752972,137.91,137.79,1.64]
[1763339232220,3.17,137.91,137.79,1.64]
[1763339232612,3.17,137.94,137.79,1.64]
[1763339232811,0.05334663,137.88,137.85,0.05242946]
[1763339233013,0.05334242,137.88,137.85,1.69519238]
[1763339233612,3.17,137.98,137.86,1.64]
[1763339234625,3.17,137.92,137.91,0.05091176]
[1763339234823,3.17,137.92,137.79,1.64]
[1763339235723,3.17,137.92,137.7,1.64]
[1763339236121,3.17,137.92,137.73,1.63]
[1763339236322,3.33,137.97,137.78,1.63]
[1763339236513,4.59198981,138.01,137.86,0.05120102]
[1763339236718,3.33,138.05,137.89,1.58]
[1763339236928,3.33,138.05,137.81,29.1]
[1763339236929,3.33,138.05,137.91,1.58]
[1763339237818,0.04564499,137.99,137.97,0.05302568]
[1763339238019,3.33,138.05,137.97,1.63100445]
[1763339238432,0.04564499,138.02,137.97,1.63100445]
[1763339238626,0.04564499,138.02,137.88,13.33753618]
[1763339238627,0.04564499,138.02,137.98,1.63375685]
[1763339238826,3.33,138.09,137.98,1.63375685]
[1763339239127,0.04564499,138.05,137.98,1.63375685]
[1763339239326,0.04564499,138.05,137.98,1.58]
[1763339240324,0.04564499,138.05,138.01,1.58]
[1763339240629,0.04564499,138.04,138.01,1.58]
[1763339240823,3.33,138.14,138.01,1.62715058]
[1763339241129,3.33,138.14,138.01,1.58]
[1763339241625,3.41,138.19,138.01,1.58]
[1763339241928,3.41,138.19,138.06,1.53]
[1763339242227,3.41,138.18,138.05,0.0479195]
[1763339242823,3.41,138.14,137.96,1.53]
[1763339243029,3.41,138.1,137.96,1.53]
[1763339243526,3.41,138.1,137.9,1.53]
[1763339243922,3.41,138.0,137.99,0.05140822]
[1763339244128,3.41,138.0,137.98,0.05479889]
[1763339244330,0.0479195,138.0,137.98,0.05493942]
[1763339246325,0.0479195,138.0,137.98,1.58493942]